bitfinex-derivatives/quotes_ETHF0:USTF0_20240817
["timestamp","ask_amount","ask_price","bid_price","bid_amount"]
[1723877550802,15.26591692,2597.1,2597.0,0.00469702]
[1723877561724,12.05811692,2597.1,2597.0,0.00469702]
[1723877562610,15.26591692,2597.1,2597.0,0.00469702]
[1723877563722,12.75292,2597.1,2597.0,0.00469702]
[1723877567522,15.26591692,2597.1,2597.0,0.00469702]
[1723877567722,14.52871692,2597.1,2597.0,0.00469702]
[1723877568024,12.01572,2597.1,2597.0,0.00469702]
[1723877568219,14.52871692,2597.1,2597.0,0.00469702]
[1723877568417,12.01572,2597.1,2597.0,0.00469702]
[1723877569326,14.52871692,2597.1,2597.0,0.00469702]
[1723877570125,12.01572,2597.1,2597.0,0.00469702]
[1723877570325,10.67831692,2597.1,2597.0,0.00469702]
[1723877571217,8.16532,2597.1,2597.0,0.00469702]
[1723877571428,10.67831692,2597.1,2597.0,0.00469702]
[1723877572430,6.24056,2597.1,2597.0,0.00469702]
[1723877572725,8.75355692,2597.1,2597.0,0.00469702]
[1723877572923,6.24056,2597.1,2597.0,0.00469702]
[1723877573715,10.67831692,2597.1,2597.0,0.00469702]
[1723877575315,12.01572,2597.1,2597.0,0.00469702]
[1723877577733,10.67639335,2597.1,2597.0,0.00469702]
[1723877578531,4.95752,2597.1,2597.0,0.00469702]
[1723877578828,8.16532,2597.1,2597.0,0.00469702]
[1723877579027,10.67702081,2597.1,2597.0,0.00469702]
[1723877579425,8.16532,2597.1,2597.0,0.00469702]
[1723877579737,6.24056,2597.1,2597.0,0.00469702]
[1723877579936,4.3158,2597.1,2597.0,3.85509702]
[1723877580124,4.3158,2597.1,2597.0,5.77993702]
[1723877580125,3.11819292,2597.1,2597.0,5.77993702]
[1723877580326,1.108,2597.1,2597.0,6.49503702]
[1723877580530,3.11819292,2597.1,2597.0,6.49503702]
[1723877581130,3.11819292,2597.1,2597.0,7.50354203]
[1723877581335,3.11819292,2597.1,2597.0,6.49503702]
[1723877581632,3.11819292,2597.1,2597.0,7.50354203]
[1723877581832,1.108,2597.1,2597.0,7.50354203]
[1723877582924,1.108,2597.1,2597.0,6.49503702]
[1723877583235,1.50784299,2597.2,2597.0,14.93407784]
[1723877583527,2.04674299,2597.3,2597.2,1.92469]
[1723877583835,1.108,2597.3,2597.1,6.78454495]
[1723877584031,1.108,2597.3,2597.2,3.8504]
[1723877584532,3.03262,2597.3,2597.2,3.8504]
[1723877584726,5.04281292,2597.3,2597.2,3.8504]
[1723877585431,3.11819292,2597.3,2597.2,3.8504]
[1723877585624,5.04281292,2597.3,2597.0,2.64459702]
[1723877585824,1.108,2597.1,2597.0,6.49499702]
[1723877586625,1.108,2597.1,2597.0,6.85369702]
[1723877587429,1.108,2597.1,2597.0,11.85369702]
[1723877587726,1.108,2597.1,2597.0,6.85369702]
[1723877588030,1.108,2597.1,2597.0,11.85369702]
[1723877588428,1.108,2597.1,2597.0,6.85369702]
[1723877588735,1.108,2597.1,2597.0,11.85369702]
[1723877588935,1.108,2597.2,2597.0,11.85369702]
[1723877589237,1.108,2597.2,2597.1,3.8504]
[1723877596338,3.03269,2597.2,2597.1,3.8504]
[1723877596535,1.108,2597.2,2597.1,3.8504]
[1723877598747,1.108,2597.2,2597.0,1.07849702]
[1723877598934,1.108,2597.1,2597.0,1.07849702]
[1723877599434,1.108,2597.1,2597.0,4.92889702]
[1723877601446,3.03276,2597.1,2597.0,4.92889702]
[1723877601937,1.92476,2597.1,2597.0,4.92889702]
[1723877602834,3.03276,2597.1,2597.0,4.92889702]
[1723877603533,3.03276,2597.1,2597.0,0.71979702]
[1723877605435,3.03276,2597.1,2597.0,0.35239702]
[1723877621556,3.03276,2597.1,2597.0,1.36180197]
[1723877623556,3.03276,2597.1,2597.0,3.28697041]
[1723877623755,3.93492292,2597.2,2597.0,3.28697041]
[1723877623954,1.92473,2597.2,2597.1,1.00940495]
[1723877624149,3.93492292,2597.2,2597.1,1.00940495]
[1723877624560,2.01019292,2597.2,2597.1,2.93416495]
[1723877624862,2.01019292,2597.2,2597.1,1.00940495]
[1723877625162,2.01019292,2597.2,2597.1,2.93449873]
[1723877626265,2.01019292,2597.2,2597.1,1.92509378]
[1723877627254,2.01019292,2597.2,2597.1,1.92507046]
[1723877627653,3.93488292,2597.2,2597.1,1.92507046]
[1723877627858,3.93488292,2597.2,2597.1,2.93527735]
[1723877628760,3.93488292,2597.2,2597.1,1.9251119]
[1723877628966,3.93488292,2597.2,2597.1,2.93529074]
[1723877629272,2.01019292,2597.2,2597.1,2.93529074]
[1723877629460,2.01019292,2597.2,2597.1,1.9251119]
[1723877629662,2.01019292,2597.2,2597.1,2.3012119]
[1723877629967,2.01019292,2597.2,2597.1,3.311405]
[1723877630556,2.01019292,2597.2,2597.1,2.3012119]
[1723877630751,2.01019292,2597.2,2597.1,3.31140425]
[1723877630959,2.01019292,2597.2,2597.1,2.3012119]
[1723877631259,2.01019292,2597.2,2597.1,3.31140661]
[1723877631762,2.01019292,2597.2,2597.1,3.81520589]
[1723877631963,2.01019292,2597.2,2597.1,2.30117184]
[1723877632355,2.01019292,2597.2,2597.1,3.81516583]
[1723877632557,2.01019292,2597.2,2597.1,2.30117184]
[1723877632964,2.01019292,2597.2,2597.1,3.31136365]
[1723877633364,2.01019292,2597.2,2597.1,2.30117184]
[1723877633755,2.01019292,2597.2,2597.1,3.81516583]
[1723877633954,2.01019292,2597.2,2597.1,2.30117184]
[1723877634160,2.01019292,2597.2,2597.1,3.66046869]
[1723877634359,2.01019292,2597.2,2597.1,3.31136234]
[1723877634959,3.93488292,2597.2,2597.1,3.31136234]
[1723877635159,3.93488292,2597.2,2597.1,3.31139812]
[1723877635353,2.01019292,2597.2,2597.1,3.31139812]
[1723877636668,2.01019292,2597.2,2597.1,2.30120762]
[1723877636868,2.01019292,2597.2,2597.1,3.81520161]
[1723877637463,2.01019292,2597.2,2597.1,2.30120762]
[1723877637769,2.01019292,2597.2,2597.1,3.81520161]
[1723877638265,2.01019292,2597.2,2597.1,2.30120762]
[1723877638870,2.01019292,2597.2,2597.1,3.81520161]
[1723877642276,5.04286292,2597.3,2597.1,3.81520161]
[1723877642466,5.04286292,2597.3,2597.2,2.93523717]
[1723877642671,5.04286292,2597.3,2597.2,3.28953717]
[1723877643868,3.03267,2597.3,2597.2,1.36442955]
[1723877644177,5.04678995,2597.3,2597.2,1.36442955]
[1723877644379,3.03267,2597.3,2597.2,1.36442955]
[1723877644679,5.04669078,2597.3,2597.2,1.36442955]
[1723877644865,5.42149078,2597.3,2597.2,3.28939261]
[1723877645470,5.42149078,2597.3,2597.2,1.01012955]
[1723877646770,5.91999857,2597.3,2597.1,1.38622955]
[1723877646967,3.93877225,2597.2,2597.1,1.38622955]
[1723877647171,3.93877225,2597.2,2597.1,3.31133598]
[1723877647369,3.93877225,2597.2,2597.1,1.38622955]
[1723877649165,3.93877225,2597.2,2597.1,3.31133792]
[1723877649371,2.01408225,2597.2,2597.1,3.31133792]
[1723877649671,2.01408225,2597.2,2597.1,2.30120837]
[1723877650175,2.01408225,2597.2,2597.1,3.81520236]
[1723877650573,5.42155225,2597.3,2597.1,3.81520236]
[1723877650777,5.42155225,2597.3,2597.2,1.01006787]
[1723877651471,5.42155225,2597.3,2597.2,2.93503633]
[1723877651873,3.40747,2597.3,2597.2,1.01006787]
[1723877652278,5.42151265,2597.3,2597.2,1.01006787]
[1723877652467,5.04671265,2597.3,2597.2,2.93503296]
[1723877652673,5.04671265,2597.3,2597.2,1.01006787]
[1723877652882,5.04671265,2597.3,2597.2,2.93504526]
[1723877653478,5.04671265,2597.3,2597.2,1.01006787]
[1723877654277,5.04671265,2597.3,2597.2,2.93503665]
[1723877654681,5.04671265,2597.3,2597.2,1.01006787]
[1723877655478,3.03267,2597.3,2597.2,1.01006787]
[1723877655881,5.04660514,2597.3,2597.2,1.01006787]
[1723877656082,3.03267,2597.3,2597.2,1.01006787]
[1723877656779,5.04668374,2597.3,2597.2,1.01006787]
[1723877657678,5.04668374,2597.3,2597.2,2.93505389]
[1723877658777,3.12201374,2597.3,2597.2,2.93505389]
[1723877658984,3.12201374,2597.3,2597.2,1.01006787]
[1723877660383,5.04663374,2597.3,2597.2,1.01006787]
[1723877660687,2.01401374,2597.3,2597.2,4.86046787]
[1723877660984,2.01401374,2597.3,2597.2,6.78515787]
[1723877662989,1.92455,2597.4,2597.2,6.78515787]
[1723877663188,1.92455,2597.4,2597.2,5.77509]
[1723877663483,1.92455,2597.4,2597.3,0.3701]
[1723877663890,1.92455,2597.4,2597.3,4.2205]
[1723877668198,2.013722,2597.4,2597.3,6.14512]
[1723877668699,2.013722,2597.4,2597.3,4.2205]
[1723877670400,2.013722,2597.4,2597.3,6.14512]
[1723877673299,1.51537708,2597.5,2597.4,1.92454]
[1723877673501,3.43984708,2597.5,2597.4,1.35251493]
[1723877674397,1.51537708,2597.5,2597.4,3.27705493]
[1723877675205,4.72317708,2597.5,2597.4,3.27705493]
[1723877675606,1.51537708,2597.5,2597.4,3.27705493]
[1723877675998,4.72317708,2597.5,2597.4,3.27705493]
[1723877676195,6.64764708,2597.5,2597.4,3.27705493]
[1723877676400,4.72317708,2597.5,2597.4,3.27705493]
[1723877676599,4.72317708,2597.5,2597.4,2.26804]
[1723877677011,4.72317708,2597.5,2597.4,3.27705493]
[1723877677307,3.21357245,2597.5,2597.4,3.27705493]
[1723877677494,5.13804245,2597.5,2597.4,3.27705493]
[1723877678505,3.21357245,2597.5,2597.4,3.27705493]
[1723877678799,0.00577245,2597.5,2597.4,3.27705493]
[1723877679304,3.21357245,2597.5,2597.4,3.27705493]
[1723877680111,6.64768708,2597.5,2597.3,3.30369493]
[1723877682611,1.92454,2597.4,2597.3,1.37911493]
[1723877683318,1.92454,2597.4,2597.3,3.30391783]
[1723877683611,1.93027245,2597.5,2597.3,4.2195129]
[1723877683816,1.93027245,2597.5,2597.4,1.00877749]
[1723877684019,1.92454,2597.4,2597.3,3.30348749]
[1723877684612,1.92454,2597.4,2597.3,5.22830829]
[1723877684813,3.43989708,2597.5,2597.3,5.22830829]
[1723877685016,3.43989708,2597.5,2597.3,3.30348749]
[1723877685223,3.43989708,2597.5,2597.4,1.00877749]
[1723877685417,1.93029245,2597.5,2597.4,1.00877749]
[1723877689319,1.93029245,2597.5,2597.4,2.93351239]
[1723877689524,1.93029245,2597.5,2597.4,3.27931239]
[1723877691019,0.00577245,2597.5,2597.4,5.20385239]
[1723877691524,0.00577245,2597.5,2597.4,3.27931239]
[1723877692124,0.00577245,2597.5,2597.4,5.20385239]
[1723877692422,0.00577245,2597.5,2597.4,9.05345239]
[1723877692631,0.00577245,2597.5,2597.4,9.55918781]
[1723877692822,0.00577245,2597.5,2597.4,8.0446749]
[1723877693022,0.00577245,2597.5,2597.4,10.06402544]
[1723877693219,1.50960463,2597.8,2597.4,10.06402544]
[1723877693424,1.50960463,2597.9,2597.8,1.92424]
[1723877693617,1.92417,2597.9,2597.8,1.00860796]
[1723877693929,4.50324463,2598.0,2597.8,5.22318406]
[1723877694224,1.92417,2597.9,2597.8,1.37450796]
[1723877695131,4.50325463,2598.0,2597.8,3.29874796]
[1723877695328,1.0695,2598.0,2597.9,1.92417]
[1723877695525,6.64715708,2598.2,2598.0,1.9241]
[1723877695721,5.13755245,2598.2,2598.1,1.4542]
[1723877696227,1.92975245,2598.2,2598.1,0.3462]
[1723877697830,1.92407,2598.1,2597.9,0.3694]
[1723877698029,2.28437,2598.1,2597.9,0.3694]
[1723877698323,0.3732,2598.0,2597.9,0.3694]
[1723877698626,0.7385,2598.0,2597.9,6.14237]
[1723877701029,0.7385,2598.0,2597.9,4.2182]
[1723877701238,0.7385,2598.0,2597.9,6.14237]
[1723877701430,0.7385,2598.0,2597.9,4.2182]
[1723877701627,1.92405,2598.1,2597.9,6.88094]
[1723877701930,1.92405,2598.1,2597.9,7.26014]
[1723877702635,1.92405,2598.1,2597.9,5.336]
[1723877705028,1.9241,2598.0,2597.9,5.336]
[1723877705233,1.9241,2598.0,2597.9,1.4872]
[1723877705430,0.00577245,2598.2,2597.9,5.336]
[1723877705636,1.92407,2598.1,2597.9,3.41137]
[1723877706031,1.92407,2598.1,2597.9,7.26017]
[1723877710341,1.92974245,2598.2,2598.0,1.92403]
[1723877710541,0.00577245,2598.2,2598.1,2.27332]
[1723877719333,0.00577245,2598.2,2598.1,3.38132]
[1723877722840,0.00577245,2598.2,2598.1,1.108]
[1723877723036,0.35327245,2598.2,2598.1,3.03202]
[1723877726355,0.00577245,2598.2,2598.1,6.88082]
[1723877726644,0.00577245,2598.2,2598.1,7.88942796]
[1723877726845,0.00029327,2598.2,2598.1,8.80481558]
[1723877727042,0.00029327,2598.2,2598.1,19.38090167]
[1723877727349,0.00029327,2598.2,2598.1,17.86798973]
[1723877727543,0.00029327,2598.2,2598.1,19.38090167]
[1723877728653,0.00029327,2598.2,2598.1,18.87455728]
[1723877728945,0.00029327,2598.2,2598.1,13.87455455]
[1723877729135,0.00029327,2598.2,2598.1,17.86798973]
[1723877729339,0.00029327,2598.2,2598.1,19.38090167]
[1723877730350,0.00029327,2598.2,2598.1,19.38092267]
[1723877732452,0.00029327,2598.2,2598.1,17.86801073]
[1723877732747,0.00029327,2598.2,2598.1,19.37812525]
[1723877733950,0.00029327,2598.2,2598.1,17.86801073]
[1723877734249,0.00029327,2598.2,2598.1,12.86801073]
[1723877734553,0.00029327,2598.2,2598.1,14.37848271]
[1723877735058,0.00029327,2598.2,2598.1,14.37846243]
[1723877735249,0.00029327,2598.2,2598.1,12.86799045]
[1723877735950,0.00029327,2598.2,2598.1,14.88734099]
[1723877736149,0.00029327,2598.2,2598.1,12.86799045]
[1723877736344,0.00029327,2598.2,2598.1,18.09514099]
[1723877736547,0.00029327,2598.2,2598.1,16.07579045]
[1723877737356,0.00029327,2598.2,2598.1,18.09514099]
[1723877738153,0.00029327,2598.2,2598.1,23.09514099]
[1723877738360,0.00029327,2598.2,2598.1,27.44797124]
[1723877738553,0.00029327,2598.2,2598.1,21.07579045]
[1723877739258,0.00029327,2598.2,2598.1,24.92378306]
[1723877739458,0.00029327,2598.2,2598.1,27.44773606]
[1723877739949,0.00029327,2598.2,2598.1,29.37175606]
[1723877740143,0.00029327,2598.2,2598.1,22.99973206]
[1723877740349,0.00029327,2598.2,2598.1,26.84756788]
[1723877741051,0.00029327,2598.2,2598.1,29.37175606]
[1723877742364,0.3591,2598.7,2598.6,1.92365]
[1723877742557,0.3591,2598.7,2598.6,3.03165]
[1723877743062,0.3591,2598.7,2598.6,3.38475]
[1723877744465,0.3591,2598.7,2598.6,4.39224183]
[1723877744652,0.37698276,2598.8,2598.6,4.39224183]
[1723877744653,0.00018276,2598.8,2598.7,1.92358]
[1723877744853,0.00018276,2598.8,2598.7,6.13862113]
[1723877745054,0.00018276,2598.8,2598.7,8.06231697]
[1723877745362,0.00018276,2598.8,2598.7,6.13859776]
[1723877745956,0.00018276,2598.8,2598.7,8.0622525]
[1723877746255,0.00018276,2598.8,2598.7,8.06224949]
[1723877746455,0.00018276,2598.8,2598.7,8.56626948]
[1723877747058,0.00018276,2598.8,2598.7,12.41426948]
[1723877747251,0.00018276,2598.8,2598.7,16.52513622]
[1723877747961,0.00018276,2598.8,2598.7,15.01531474]
[1723877748162,0.00018276,2598.8,2598.7,16.52515364]
[1723877748655,0.00018276,2598.8,2598.7,15.01531474]
[1723877749053,0.00018276,2598.8,2598.7,16.52515364]
[1723877749354,0.00018276,2598.8,2598.7,16.02153806]
[1723877749559,0.00018276,2598.8,2598.7,10.24988633]
[1723877749856,0.00018276,2598.8,2598.7,11.35788633]
[1723877750061,0.00018276,2598.8,2598.7,8.15008633]
[1723877750262,0.00018276,2598.8,2598.7,7.14386301]
[1723877752868,0.00018276,2598.8,2598.7,1.108]
[1723877754268,0.00018276,2598.8,2598.7,3.03158]
[1723877754463,0.00018276,2598.8,2598.7,1.108]
[1723877754865,0.00018276,2598.8,2598.7,3.03158]
[1723877755063,0.00018276,2598.8,2598.7,1.108]
[1723877755264,0.00018276,2598.8,2598.7,3.03158]
[1723877757871,5.77168276,2598.8,2598.7,1.108]
[1723877758374,1.92368276,2598.8,2598.7,1.108]
[1723877758963,0.00018276,2598.8,2598.7,1.108]
[1723877759468,0.00018276,2598.8,2598.7,3.03158]
[1723877759673,0.00018276,2598.8,2598.7,1.108]
[1723877759868,1.92368276,2598.8,2598.7,1.108]
[1723877760967,0.00018276,2598.8,2598.7,3.03158]
[1723877762968,0.00018276,2598.8,2598.7,1.108]
[1723877763371,0.00018276,2598.8,2598.7,3.03158]
[1723877766175,1.92373276,2598.8,2598.6,1.00622332]
[1723877766375,0.00018276,2598.8,2598.5,2.11422332]
[1723877766582,1.92369,2598.6,2598.4,3.03177]
[1723877766882,0.7423,2598.5,2598.4,3.03177]
[1723877771874,0.7423,2598.5,2598.4,4.03799332]
[1723877777177,0.3673,2598.5,2598.4,4.03799332]
[1723877778781,4.18283463,2598.7,2598.5,1.92372]
[1723877778978,4.55263463,2598.7,2598.6,1.475]
[1723877779479,8.40063463,2598.7,2598.6,1.475]
[1723877789593,8.40063463,2598.7,2598.6,0.367]
[1723877790694,1.92373,2598.5,2598.4,1.108]
[1723877803294,1.92373,2598.5,2598.4,2.11422332]
[1723877804009,1.92373,2598.5,2598.4,1.108]
[1723877804403,1.92373,2598.5,2598.4,2.11422332]
[1723877804599,1.92373,2598.5,2598.4,1.108]
[1723877804796,3.43242754,2598.5,2598.4,1.108]
[1723877805202,3.43242754,2598.5,2598.4,2.11422332]
[1723877805599,3.43242754,2598.5,2598.4,1.108]
[1723877805798,1.9238,2598.4,2598.3,1.75582332]
[1723877806002,1.9238,2598.4,2598.2,3.7768489]
[1723877806003,1.92387,2598.3,2598.2,1.34932332]
[1723877806309,4.12346754,2598.3,2598.2,0.6848]
[1723877806509,2.61477,2598.3,2598.2,0.6848]
[1723877807002,4.12430632,2598.3,2598.2,0.6848]
[1723877807312,4.12427877,2598.3,2598.2,0.6848]
[1723877807804,1.92402,2598.1,2598.0,2.47682332]
[1723877808009,1.92402,2598.1,2598.0,4.74368178]
[1723877808817,3.43350918,2598.2,2598.0,4.74373112]
[1723877809111,1.92399,2598.2,2598.1,1.00622332]
[1723877809614,5.77279,2598.2,2598.1,1.00622332]
[1723877809819,5.77279,2598.2,2598.1,2.11422332]
[1723877811509,7.28230918,2598.2,2598.1,2.11422332]
[1723877812006,5.77279,2598.2,2598.1,2.11422332]
[1723877812206,7.28230918,2598.2,2598.1,2.11422332]
[1723877813304,5.77279,2598.2,2598.1,2.11422332]
[1723877814218,5.77279,2598.2,2598.1,1.00622332]
[1723877814418,1.92402,2598.1,2598.0,0.7051]
[1723877814713,1.92402,2598.1,2598.0,3.73742893]
[1723877814916,3.43351918,2598.2,2598.0,5.24726783]
[1723877815114,3.43351918,2598.2,2598.1,1.00859127]
[1723877815317,1.924,2598.2,2598.1,1.00859127]
[1723877817117,1.924,2598.2,2598.0,2.82169127]
[1723877817417,1.924,2598.2,2598.1,1.00859127]
[1723877821020,1.92402,2598.1,2598.0,2.45909127]
[1723877821215,1.92402,2598.1,2598.0,1.4505]
[1723877821414,5.77282,2598.1,2598.0,1.4505]
[1723877822624,5.77282,2598.1,2598.0,1.108]
[1723877823417,5.77282,2598.1,2597.9,1.71299127]
[1723877823626,1.92402,2598.1,2598.0,1.108]
[1723877824115,1.9241,2598.0,2597.9,1.00859127]
[1723877824319,5.7729,2598.0,2597.9,1.4852]
[1723877824623,3.8488,2598.0,2597.9,2.49379127]
[1723877825413,3.8488,2598.0,2597.9,1.4852]
[1723877825715,3.8488,2598.0,2597.9,1.8617]
[1723877825917,5.7729,2598.0,2597.9,1.8617]
[1723877827118,5.7729,2598.0,2597.9,1.4845]
[1723877827324,6.145,2598.0,2597.9,1.108]
[1723877827525,7.65451918,2598.0,2597.9,1.108]
[1723877830226,1.92424,2597.8,2597.7,1.4864]
[1723877831024,1.92432,2597.7,2597.6,0.00577245]
[1723877831225,6.12902,2597.7,2597.6,0.00577245]
[1723877831728,7.63853918,2597.7,2597.6,0.00577245]
[1723877831920,6.12902,2597.7,2597.6,0.00577245]
[1723877834222,5.77392,2597.7,2597.6,1.47897245]
[1723877834925,5.77392,2597.7,2597.6,1.11377245]
[1723877835235,1.92432,2597.7,2597.6,1.11377245]
[1723877835922,5.77392,2597.7,2597.6,1.11377245]
[1723877836127,5.77392,2597.7,2597.6,0.00577245]
[1723877837225,5.77392,2597.7,2597.6,0.35027245]
[1723877839028,6.88192,2597.7,2597.6,0.35027245]
[1723877839229,6.88192,2597.7,2597.6,0.00577245]
[1723877843139,5.77392,2597.7,2597.6,0.00577245]
[1723877847331,6.88192,2597.7,2597.6,0.00577245]
[1723877856732,1.92432,2597.7,2597.6,0.00577245]
[1723877856928,1.9243,2597.8,2597.6,0.00577245]
[1723877857131,1.9243,2597.8,2597.6,1.11377245]
[1723877857132,1.92427,2597.8,2597.6,1.11377245]
[1723877857329,1.92427,2597.8,2597.7,0.7046]
[1723877857532,1.92427,2597.8,2597.7,1.0707]
[1723877858531,1.92424,2597.8,2597.7,1.0707]
[1723877861034,3.43375918,2597.8,2597.7,1.0707]
[1723877861229,1.92432,2597.7,2597.6,0.00577245]
[1723877861540,5.23543918,2597.7,2597.6,0.00577245]
[1723877863647,3.72592,2597.7,2597.6,0.00577245]
[1723877864245,5.23543918,2597.7,2597.6,0.00577245]
[1723877865436,4.89153918,2597.7,2597.6,0.00577245]
[1723877869135,8.74113918,2597.7,2597.6,0.00577245]
[1723877869339,7.23162,2597.7,2597.6,0.00577245]
[1723877869549,11.169662,2597.7,2597.6,0.00577245]
[1723877869843,11.169662,2597.7,2597.4,1.37699127]
[1723877869844,3.84908,2597.4,2597.3,1.00859127]
[1723877870041,1.92469,2597.2,2597.1,1.38108661]
[1723877870242,1.92469,2597.2,2597.1,0.3722]
[1723877870639,3.84952,2597.1,2597.0,0.00469702]
[1723877870840,9.06620718,2597.1,2597.0,0.00469702]
[1723877871041,12.91660718,2597.1,2597.0,0.00469702]
[1723877871638,10.90772,2597.1,2597.0,0.00469702]
[1723877872450,12.41347218,2597.1,2597.0,0.00469702]
[1723877872644,10.90772,2597.1,2597.0,0.00469702]
[1723877873357,10.48894198,2597.1,2597.0,0.00469702]
[1723877878147,8.98296,2597.1,2597.0,0.00469702]
[1723877878554,10.48894198,2597.1,2597.0,0.00469702]
[1723877880670,1.92476,2597.1,2597.0,0.00469702]
[1723877880958,0.7081,2597.3,2597.0,5.30529702]
[1723877880959,1.50598198,2597.3,2597.0,5.30529702]
[1723877881158,1.92466,2597.3,2597.0,1.45489702]
[1723877881361,1.92469,2597.2,2597.1,0.3694]
[1723877883260,1.92464,2597.3,2597.1,0.3694]
[1723877883464,5.13816245,2597.4,2597.1,1.8201]
[1723877883664,1.93036245,2597.4,2597.1,1.8201]
[1723877883964,1.92462,2597.3,2597.1,1.8201]
[1723877884161,1.92462,2597.3,2597.1,0.7121]
[1723877884367,3.03262,2597.3,2597.1,0.7121]
[1723877884555,3.38422,2597.3,2597.1,0.7121]
[1723877885059,1.92469,2597.2,2597.1,0.7121]
[1723877885956,3.38427,2597.3,2597.1,0.7121]
[1723877887759,1.9247,2597.2,2597.1,0.7121]
[1723877888361,3.38427,2597.3,2597.1,0.7121]
[1723877888561,3.03267,2597.3,2597.1,0.7121]
[1723877891569,1.92467,2597.3,2597.1,0.7121]
[1723877894070,1.9247,2597.2,2597.1,0.7121]
[1723877894771,3.03267,2597.3,2597.1,0.7121]
[1723877896171,1.108,2597.3,2597.1,0.7121]
[1723877897466,3.03263,2597.3,2597.1,0.7121]
[1723877900868,1.108,2597.3,2597.1,0.7121]
[1723877901274,3.03267,2597.3,2597.1,0.7121]
[1723877904367,1.92469,2597.2,2597.1,0.7121]
[1723877904568,3.03267,2597.3,2597.1,0.7121]
[1723877905176,1.108,2597.3,2597.1,2.63686]
[1723877905475,4.54434443,2597.4,2597.1,2.63686]
[1723877906166,1.92463,2597.3,2597.1,0.7121]
[1723877909374,1.92463,2597.3,2597.1,1.72098661]
[1723877910369,4.54433443,2597.4,2597.1,1.72098661]
[1723877910572,1.51175443,2597.4,2597.3,3.03262]
[1723877910777,0.00577245,2597.4,2597.3,5.96622145]
[1723877910968,0.00577245,2597.4,2597.3,15.31757374]
[1723877911274,0.00577245,2597.4,2597.3,14.8161486]
[1723877911480,0.00577245,2597.4,2597.3,9.8161486]
[1723877912179,0.00577245,2597.4,2597.3,7.8915286]
[1723877912375,0.00577245,2597.4,2597.3,7.89143376]
[1723877912676,0.00577245,2597.4,2597.3,6.78343376]
[1723877912981,1.93031245,2597.4,2597.2,2.11641376]
[1723877913188,1.92462,2597.3,2597.2,2.11641376]
[1723877913375,1.92462,2597.3,2597.2,2.93339918]
[1723877914272,3.76365245,2597.4,2597.2,2.93339918]
[1723877914473,3.76365245,2597.4,2597.3,1.00841376]
[1723877917072,2.65565245,2597.4,2597.3,1.00841376]
[1723877918378,1.93035245,2597.4,2597.3,1.00841376]
[1723877918681,1.92462,2597.3,2597.2,1.0087671]
[1723877918882,2.68022,2597.3,2597.2,3.43483001]
[1723877919083,0.7556,2597.3,2597.2,1.92499111]
[1723877919384,0.7556,2597.3,2597.2,1.92497492]
[1723877919980,0.7556,2597.3,2597.2,3.43481382]
[1723877920182,0.7556,2597.3,2597.2,5.35950382]
[1723877920379,1.93035245,2597.4,2597.2,5.35950382]
[1723877920578,1.93035245,2597.4,2597.3,1.00881947]
[1723877924485,1.93035245,2597.4,2597.3,2.93373664]
[1723877924889,1.93035245,2597.4,2597.3,1.00881947]
[1723877925391,1.93035245,2597.4,2597.3,2.93373494]
[1723877927391,1.93035245,2597.4,2597.3,2.93410174]
[1723877927788,1.93035245,2597.4,2597.3,2.93410314]
[1723877928592,0.00577245,2597.4,2597.3,3.43475537]
[1723877928792,0.00577245,2597.4,2597.3,9.20977537]
[1723877930584,0.00577245,2597.4,2597.3,5.35937537]
[1723877932985,0.00577245,2597.4,2597.3,5.35929926]
[1723877933383,0.00577245,2597.4,2597.3,9.20969926]
[1723877933591,0.00577245,2597.4,2597.3,10.31769926]
[1723877935380,0.00577245,2597.4,2597.3,9.20969926]
[1723877935581,1.93031245,2597.4,2597.3,2.93400849]
[1723877935785,4.92369443,2597.4,2597.3,1.00916813]
[1723877936194,3.41771245,2597.4,2597.3,2.93411661]
[1723877937592,3.41771245,2597.4,2597.2,3.4345289]
[1723877937795,3.41771245,2597.4,2597.3,2.93407708]
[1723877938187,4.92369443,2597.4,2597.3,1.00917424]
[1723877938695,3.41771245,2597.4,2597.3,2.93411381]
[1723877938880,4.92369443,2597.4,2597.3,1.00917424]
[1723877939891,4.92369443,2597.4,2597.3,2.93414142]
[1723877940094,4.92369443,2597.4,2597.3,1.00917424]
[1723877940287,4.92369443,2597.4,2597.3,2.93412124]
[1723877940492,2.99915443,2597.4,2597.3,2.93414456]
[1723877940701,2.30971245,2597.4,2597.3,3.43480922]
[1723877940998,2.30971245,2597.4,2597.3,3.43467205]
[1723877942191,3.81569443,2597.4,2597.3,1.00930387]
[1723877942591,3.81569443,2597.4,2597.3,2.93427285]
[1723877942791,3.81569443,2597.4,2597.3,1.00930387]
[1723877943588,3.81569443,2597.4,2597.3,2.9343082]
[1723877944294,1.92462,2597.3,2597.2,1.00930387]
[1723877944593,3.43369734,2597.3,2597.2,1.00930387]
[1723877945395,1.50902855,2597.3,2597.2,1.00930387]
[1723877947696,1.50902855,2597.3,2597.2,2.93399387]
[1723877947888,1.50902855,2597.3,2597.2,2.93433403]
[1723877948503,3.43364855,2597.3,2597.2,2.93433403]
[1723877948692,1.92462,2597.3,2597.2,1.00930387]
[1723877948998,1.92469,2597.2,2597.1,1.37870387]
[1723877949191,3.7760366,2597.2,2597.1,1.37870387]
[1723877950198,3.7760366,2597.2,2597.1,1.00930387]
[1723877950504,1.92476,2597.1,2597.0,1.01400089]
[1723877950703,4.17783626,2597.1,2597.0,1.01400089]
[1723877951297,5.28583626,2597.1,2597.0,1.01400089]
[1723877951701,5.28583626,2597.1,2597.0,2.93922246]
[1723877952104,5.28583626,2597.1,2597.0,2.93932248]
[1723877953501,5.28583626,2597.1,2597.0,1.01410091]
[1723877953708,5.28583626,2597.1,2597.0,2.93927553]
[1723877953896,3.77606,2597.1,2597.0,2.93927553]
[1723877954205,5.28583626,2597.1,2597.0,2.93927553]
[1723877954505,5.28583626,2597.1,2597.0,1.01410091]
[1723877954895,3.77606,2597.1,2597.0,1.01410091]
[1723877955503,1.4768,2597.1,2597.0,1.01410091]
[1723877955710,1.4768,2597.1,2597.0,3.43964297]
[1723877955901,0.3688,2597.1,2597.0,3.43964297]
[1723877956102,0.3688,2597.1,2597.0,1.92980407]
[1723877957302,0.3688,2597.1,2597.0,2.93894283]
[1723877958711,1.87857626,2597.1,2597.0,1.01383578]
[1723877959097,0.3688,2597.1,2597.0,1.01383578]
[1723877959507,3.43449626,2597.2,2597.0,1.01383578]
[1723877959707,3.79369626,2597.2,2597.0,1.01383578]
[1723877961009,3.79369626,2597.2,2597.1,0.3671]